Workbook

Sheet Template (hidden)
A1: Budget Sheet/Spending Tracker
D3: Beginning: | E3: 2014-12-02
D4: Ending: | E4: 2014-12-14
A6: Date | B6: W/D | C6: Description | D6: Amount | E6: Category | J6: Auto: | K6: =SUMIF($E$7:E100,"Auto",$D$7:D100) -> 200.37
A7: 2014-12-01 | B7: W | C7: Gas - Chevron | D7: 46.32 | E7: Auto | J7: Bill: | K7: =SUMIF($E$7:E101,"Bill",$D$7:D101) -> 1649.12
A8: 2014-12-01 | B8: W | C8: Winco - Groceries | D8: 23.15 | E8: Grocery | J8: Clothes: | K8: =SUMIF($E$7:E102,"Clothes",$D$7:D102) -> 59.35
A9: 2014-12-02 | B9: W | C9: Car Insurance | D9: 231.8 | E9: Bill | G9: Total Transactions: | H9: =COUNT(D7:D499) -> 41 | J9: Education: | K9: =SUMIF($E$7:E103,"Education",$D$7:D103) -> 5.63
A10: 2014-12-02 | B10: W | C10: Walmart - Gift | D10: 25.38 | E10: Other | G10: Total Expenditures: | H10: =SUMIF($B$7:B100,"W",$D$7:D97) -> 2546.53 | J10: Entertainment: | K10: =SUMIF($E$7:E104,"Entertainment",$D$7:D104) -> 43.04
A11: 2014-12-04 | B11: W | C11: Phone Bill | D11: 78.53 | E11: Bill | G11: Total Income: | H11: =SUMIF($E$7:E150,"Paycheck",$D$7:D98) -> 2569.44 | J11: Food: | K11: =SUMIF($E$7:E105,"Food",$D$7:D105) -> 98.01
A12: 2014-12-04 | B12: W | C12: McDonalds | D12: 8.27 | E12: Food | J12: Grocery: | K12: =SUMIF($E$7:E106,"Grocery", $D$7:D106) -> 253.8
A13: 2014-12-04 | B13: D | C13: Walmart - Refund | D13: 13.64 | E13: Deposit | J13: Home Improvement: | K13: =SUMIF($E$7:E107,"Home Improvement",$D$7:D107) -> 43.18
A14: 2014-12-05 | B14: W | C14: Home Depot | D14: 43.18 | E14: Home Improvement | J14: Other: | K14: =SUMIF($E$7:E108,"Other",$D$7:D108) -> 25.38
A15: 2014-12-06 | B15: W | C15: JCPennys | D15: 17.69 | E15: Clothes | J15: Tithing: | K15: =SUMIF($E$7:E109,"Tithing",$D$7:D109) -> 122.98
A16: 2014-12-06 | B16: W | C16: Sears | D16: 5.37 | E16: Clothes
A17: 2014-12-06 | B17: W | C17: Ross | D17: 36.29 | E17: Clothes
A18: 2014-12-07 | B18: W | C18: Carrabbas | D18: 47 | E18: Food
A19: 2014-12-08 | B19: D | C19: Paycheck | D19: 376.14 | E19: Paycheck
A20: 2014-12-10 | B20: D | C20: Paycheck | D20: 853.65 | E20: Paycheck
A21: 2014-12-10 | B21: W | C21: Rent | D21: 750 | E21: Bill
A22: 2014-12-11 | B22: W | C22: Maceys | D22: 18.16 | E22: Grocery
A23: 2014-12-13 | B23: W | C23: Tithing | D23: 122.98 | E23: Tithing
A24: 2014-12-13 | B24: W | C24: Hulu | D24: 7.99 | E24: Bill
A25: 2014-12-13 | B25: W | C25: Dollar Tree | D25: 5.63 | E25: Education
A26: 2014-12-14 | B26: W | C26: Student Loans | D26: 89.65 | E26: Bill
A27: 2014-12-14 | B27: W | C27: Gas - Chevron | D27: 37.89 | E27: Auto
A28: 2014-12-14 | B28: W | C28: Car Payment | D28: 275.13 | E28: Bill
A29: 2014-12-14 | B29: W | C29: Winco - Groceries | D29: 67.43 | E29: Grocery
A30: 2014-12-14 | B30: W | C30: Redbox | D30: 1.67 | E30: Entertainment
A31: 2014-12-15 | B31: W | C31: Dairy Queen | D31: 6.74 | E31: Food
A32: 2014-12-16 | B32: W | C32: Gas - Chevron | D32: 42.18 | E32: Auto
A33: 2014-12-18 | B33: W | C33: Costco - Groceries | D33: 45.42 | E33: Grocery
A34: 2014-12-18 | B34: W | C34: State Farm - Life Insurance | D34: 22.67 | E34: Bill
A35: 2014-12-18 | B35: W | C35: Oreilly Auto - Wipers | D35: 21.74 | E35: Auto
A36: 2014-12-19 | B36: W | C36: Carrabbas | D36: 36 | E36: Food
A37: 2014-12-21 | B37: W | C37: Ice Skating | D37: 15 | E37: Entertainment
A38: 2014-12-22 | B38: D | C38: Paycheck | D38: 402.87 | E38: Paycheck
A39: 2014-12-22 | B39: W | C39: Rite Aid - Medicine | D39: 7.48 | E39: Grocery
A40: 2014-12-22 | B40: W | C40: Car Payment | D40: 193.35 | E40: Bill
A41: 2014-12-24 | B41: D | C41: Paycheck | D41: 936.78 | E41: Paycheck
A42: 2014-12-26 | B42: W | C42: Gas - Maverick | D42: 52.24 | E42: Auto
A43: 2014-12-28 | B43: D | C43: Christmas Cash | D43: 250 | E43: Deposit
A44: 2014-12-28 | B44: W | C44: Winco - Groceries | D44: 72.93 | E44: Grocery
A45: 2014-12-29 | B45: W | C45: Walmart - Party Supplies | D45: 26.37 | E45: Entertainment
A46: 2014-12-29 | B46: W | C46: Maceys | D46: 19.23 | E46: Grocery
A47: 2014-12-30 | B47: W | C47: Gas - Chevron | D47: 45.67 | E47: Auto

Sheet Home

Sheet Jan 2015
A1: Budget Sheet/Spending Tracker
D3: Beginning: | E3: 2015-01-01
D4: Ending: | E4: 2015-01-31
A6: Date | B6: W/D | C6: Description | D6: Amount | E6: Category | J6: Auto: | K6: =SUMIF($E$7:E100,"Auto",$D$7:D100) -> 0
J7: Bill: | K7: =SUMIF($E$7:E101,"Bill",$D$7:D101) -> 0
J8: Clothes: | K8: =SUMIF($E$7:E102,"Clothes",$D$7:D102) -> 0
G9: Total Transactions: | H9: =COUNT(D7:D499) -> 0 | J9: Education: | K9: =SUMIF($E$7:E103,"Education",$D$7:D103) -> 0
G10: Total Expenditures: | H10: =SUMIF($B$7:B100,"W",$D$7:D97) -> 0 | J10: Entertainment: | K10: =SUMIF($E$7:E104,"Entertainment",$D$7:D104) -> 0
G11: Total Income: | H11: =SUMIF($E$7:E150,"Paycheck",$D$7:D98) -> 0 | J11: Food: | K11: =SUMIF($E$7:E105,"Food",$D$7:D105) -> 0
J12: Grocery: | K12: =SUMIF($E$7:E106,"Grocery", $D$7:D106) -> 0
J13: Home Improvement: | K13: =SUMIF($E$7:E107,"Home Improvement",$D$7:D107) -> 0
J14: Other: | K14: =SUMIF($E$7:E108,"Other",$D$7:D108) -> 0
J15: Tithing: | K15: =SUMIF($E$7:E109,"Tithing",$D$7:D109) -> 0

Sheet Reference (hidden)
A1: Date | B1: W/D | C1: Item | D1: Amount | E1: Category
A2: 2014-12-01 | B2: W | C2: Gas - Chevron | D2: 46.32 | E2: Auto
A3: 2014-12-01 | B3: W | C3: Winco - Groceries | D3: 23.15 | E3: Grocery
A4: 2014-12-02 | B4: W | C4: Car Insurance | D4: 231.8 | E4: Bill
A5: 2014-12-02 | B5: W | C5: Walmart - Gift | D5: 25.38 | E5: Special | G5: Categories | I5: Date:
A6: 2014-12-04 | B6: W | C6: Phone Bill | D6: 78.53 | E6: Bill | G6: Auto | I6: Jan | J6: 1 | K6: 2014
A7: 2014-12-04 | B7: W | C7: McDonalds | D7: 8.27 | E7: Food | G7: Bill | I7: Feb | J7: 2 | K7: 2015
A8: 2014-12-04 | B8: D | C8: Walmart - Refund | D8: 13.64 | E8: Deposit | G8: Clothes | I8: Mar | J8: 3 | K8: 2016
A9: 2014-12-05 | B9: W | C9: Home Depot | D9: 43.18 | E9: Home Improvement | G9: Deposit | I9: Apr | J9: 4 | K9: 2017
A10: 2014-12-06 | B10: W | C10: JCPennys | D10: 17.69 | E10: Clothes | G10: Education | I10: May | J10: 5 | K10: 2018
A11: 2014-12-06 | B11: W | C11: Sears | D11: 5.37 | E11: Clothes | G11: Entertainment | I11: Jun | J11: 6 | K11: 2019
A12: 2014-12-06 | B12: W | C12: Ross | D12: 36.29 | E12: Clothes | G12: Food | I12: Jul | J12: 7 | K12: 2020
A13: 2014-12-07 | B13: W | C13: Carrabbas | D13: 47 | E13: Food | G13: Grocery | I13: Aug | J13: 8
A14: 2014-12-08 | B14: D | C14: Paycheck | D14: 376.14 | E14: Paycheck | G14: Home Improvement | I14: Sep | J14: 9
A15: 2014-12-10 | B15: D | C15: Paycheck | D15: 853.65 | E15: Paycheck | G15: Other | I15: Oct | J15: 10
A16: 2014-12-10 | B16: W | C16: Rent | D16: 750 | E16: Bill | G16: Paycheck | I16: Nov | J16: 11
A17: 2014-12-11 | B17: W | C17: Maceys | D17: 18.16 | E17: Grocery | G17: Tithing | I17: Dec | J17: 12
A18: 2014-12-13 | B18: W | C18: Tithing | D18: 122.98 | E18: Tithing | J18: 13
A19: 2014-12-13 | B19: W | C19: Hulu | D19: 7.99 | E19: Bill | J19: 14
A20: 2014-12-13 | B20: W | C20: Dollar Tree | D20: 5.63 | E20: Education | J20: 15
A21: 2014-12-14 | B21: W | C21: Student Loans | D21: 89.65 | E21: Bill | J21: 16
A22: 2014-12-14 | B22: W | C22: Gas - Chevron | D22: 37.89 | E22: Auto | J22: 17
A23: 2014-12-14 | B23: W | C23: Car Payment | D23: 275.13 | E23: Bill | J23: 18
A24: 2014-12-14 | B24: W | C24: Winco - Groceries | D24: 67.43 | E24: Grocery | J24: 19
A25: 2014-12-14 | B25: W | C25: Redbox | D25: 1.67 | E25: Entertainment | J25: 20
A26: 2014-12-15 | B26: W | C26: Dairy Queen | D26: 6.74 | E26: Food | J26: 21
A27: 2014-12-16 | B27: W | C27: Gas - Chevron | D27: 42.18 | E27: Auto | J27: 22
A28: 2014-12-18 | B28: W | C28: Costco - Groceries | D28: 45.42 | E28: Grocery | J28: 23
A29: 2014-12-18 | B29: W | C29: State Farm - Life Insurance | D29: 22.67 | E29: Bill | J29: 24
A30: 2014-12-18 | B30: W | C30: Oreilly Auto - Wipers | D30: 21.74 | E30: Auto | J30: 25
A31: 2014-12-19 | B31: W | C31: Carrabbas | D31: 36 | E31: Food | J31: 26
A32: 2014-12-21 | B32: W | C32: Ice Skating | D32: 15 | E32: Entertainment | J32: 27
A33: 2014-12-22 | B33: D | C33: Paycheck | D33: 402.87 | E33: Paycheck | J33: 28
A34: 2014-12-22 | B34: W | C34: Rite Aid - Medicine | D34: 7.48 | E34: Grocery | J34: 29
A35: 2014-12-22 | B35: W | C35: Car Payment | D35: 193.35 | E35: Bill | J35: 30
A36: 2014-12-24 | B36: D | C36: Paycheck | D36: 936.78 | E36: Paycheck | J36: 31
A37: 2014-12-26 | B37: W | C37: Gas - Maverick | D37: 52.24 | E37: Auto
A38: 2014-12-28 | B38: D | C38: Christmas Cash | D38: 250 | E38: Deposit
A39: 2014-12-28 | B39: W | C39: Winco - Groceries | D39: 72.93 | E39: Grocery
A40: 2014-12-29 | B40: W | C40: Walmart - Party Supplies | D40: 26.37 | E40: Entertainment
A41: 2014-12-29 | B41: W | C41: Maceys | D41: 19.23 | E41: Grocery
A42: 2014-12-30 | B42: W | C42: Gas - Chevron | D42: 45.67 | E42: Auto

Sheet Selection (hidden)
A1: Date | B1: W/D | C1: Description | D1: Amount | E1: Category
G2: Total Transactions: | H2: =COUNT(D2:D495) -> 0
G3: Total Expenditures: | H3: =SUMIF($B$2:B96,"W",$D$2:D93) -> 0
G4: Total Income: | H4: =SUMIF($E$2:E97,"Paycheck",$D$2:D94) -> 0
G7: Auto: | H7: =SUMIF($E$2:E91,"Auto",$D$2:D91) -> 0
G8: Bills: | H8: =SUMIF($E$2:E92,"Bill",$D$2:D92) -> 0
G9: Clothes: | H9: =SUMIF($E$2:E93,"Clothes",$D$2:D93) -> 0
G10: Education: | H10: =SUMIF($E$2:E94,"Education",$D$2:D94) -> 0
G11: Entertainment: | H11: =SUMIF($E$2:E95,"Entertainment",$D$2:D95) -> 0
G12: Food: | H12: =SUMIF($E$2:E96,"Food",$D$2:D96) -> 0
G13: Grocery: | H13: =SUMIF($E$2:E97,"Grocery", $D$2:D97) -> 0
G14: Home Improvement: | H14: =SUMIF($E$2:E98,"Home Improvement",$D$2:D98) -> 0
G15: Other: | H15: =SUMIF($E$2:E99,"Other",$D$2:D99) -> 0
G16: Tithing: | H16: =SUMIF($E$2:E100,"Tithing",$D$2:D100) -> 0
